Workbook

Sheet Sheet1
A1: MAVEN STATIC Modes
Q2: Mode | R2: 1 | S2: x | AE2: Mode | AF2: 1 | AG2: x | AS2: Mode | AT2: 1.5 | AU2: x | BG2: Mode | BH2: 2 | BI2: x | BU2: Mode | BV2: 3.25 | BW2: x | CI2: Mode | CJ2: 4.5 | CK2: x | CW2: Mode | CX2: 4 | CY2: x
Q3: Default at ATLO
B5: APID | D5: Name | E5: En | F5: Mass | G5: Def | H5: An | I5: Misc | J5: Byt | K5: #/pkt | L5: size | M5: %ovhd | O5: APID | Q5: Ram | R5: rate | T5: Conic | U5: rate | W5: Pickup | X5: rate | Z5: Scan | AA5: rate | AC5: APID | AE5: Ram | AF5: rate | AH5: Conic | AI5: rate | AK5: Pickup | AL5: rate | AN5: Scan | AO5: rate | AQ5: APID | AS5: Ram | AT5: rate | AV5: Conic | AW5: rate | AY5: Pickup | AZ5: rate | BB5: Scan | BC5: rate | BE5: APID | BG5: Ram | BH5: rate | BJ5: Conic | BK5: rate | BM5: Pickup | BN5: rate | BP5: Scan | BQ5: rate | BS5: APID | BU5: Ram | BV5: rate | BX5: Conic | BY5: rate | CA5: Pickup | CB5: rate | CD5: Scan | CE5: rate | CG5: APID | CI5: Ram | CJ5: rate | CL5: Conic | CM5: rate | CO5: Pickup | CP5: rate | CR5: Scan | CS5: rate | CU5: APID | CW5: Ram | CX5: rate | CZ5: Conic | DA5: rate | DC5: Pickup | DD5: rate | DF5: Scan | DG5: rate
B6: 2A | C6: Hkp | D6: Hkp | E6: 1 | F6: 1 | G6: 1 | H6: 1 | I6: 1 | J6: 146 | K6: 1.00 | L6: 156 | M6: =100*($L6-$E6*$F6*$G6*$H6*$I6*$J6*$K6)/$L6 -> 6.4 | O6: 2A | P6: Hkp | Q6: 32 | R6: =8*$L6/($K6*Q6) -> 39.0 | T6: 32 | U6: =8*$L6/($K6*T6) -> 39.0 | W6: 32 | X6: =8*$L6/($K6*W6) -> 39.0 | Z6: 32 | AA6: =8*$L6/($K6*Z6) -> 39.0 | AC6: 2A | AD6: Hkp | AE6: 32 | AF6: =8*$L6/($K6*AE6) -> 39.0 | AH6: 32 | AI6: =8*$L6/($K6*AH6) -> 39.0 | AK6: 32 | AL6: =8*$L6/($K6*AK6) -> 39.0 | AN6: 32 | AO6: =8*$L6/($K6*AN6) -> 39.0 | AQ6: 2A | AR6: Hkp | AS6: 32 | AT6: =8*$L6/($K6*AS6) -> 39.0 | AV6: 32 | AW6: =8*$L6/($K6*AV6) -> 39.0 | AY6: 32 | AZ6: =8*$L6/($K6*AY6) -> 39.0 | BB6: 32 | BC6: =8*$L6/($K6*BB6) -> 39.0 | BE6: 2A | BF6: Hkp | BG6: 32 | BH6: =8*$L6/($K6*BG6) -> 39.0 | BJ6: 32 | BK6: =8*$L6/($K6*BJ6) -> 39.0 | BM6: 32 | BN6: =8*$L6/($K6*BM6) -> 39.0 | BP6: 32 | BQ6: =8*$L6/($K6*BP6) -> 39.0 | BS6: 2A | BT6: Hkp | BU6: 32 | BV6: =8*$L6/($K6*BU6) -> 39.0 | BX6: 32 | BY6: =8*$L6/($K6*BX6) -> 39.0 | CA6: 32 | CB6: =8*$L6/($K6*CA6) -> 39.0 | CD6: 32 | CE6: =8*$L6/($K6*CD6) -> 39.0 | CG6: 2A | CH6: Hkp | CI6: 32 | CJ6: =8*$L6/($K6*CI6) -> 39.0 | CL6: 32 | CM6: =8*$L6/($K6*CL6) -> 39.0 | CO6: 32 | CP6: =8*$L6/($K6*CO6) -> 39.0 | CR6: 32 | CS6: =8*$L6/($K6*CR6) -> 39.0 | CU6: 2A | CV6: Hkp | CW6: 32 | CX6: =8*$L6/($K6*CW6) -> 39.0 | CZ6: 32 | DA6: =8*$L6/($K6*CZ6) -> 39.0 | DC6: 32 | DD6: =8*$L6/($K6*DC6) -> 39.0 | DF6: 32 | DG6: =8*$L6/($K6*DF6) -> 39.0
B7: C0 | C7: 64Ex2M | D7: P1A | E7: 64 | F7: 2 | G7: 1 | H7: 1 | I7: 1 | J7: 1 | K7: 8.00 | L7: 1040 | M7: =100*($L7-$E7*$F7*$G7*$H7*$I7*$J7*$K7)/$L7 -> 1.5 | O7: C0 | P7: 64Ex2M | Q7: 4 | R7: =8*$L7/($K7*Q7) -> 260.0 | T7: 4 | U7: 260.0 | W7: 8 | X7: 130.0 | Z7: 4 | AA7: 260.0 | AC7: C0 | AD7: 64Ex2M | AE7: 4 | AF7: =8*$L7/($K7*AE7) -> 260.0 | AH7: 4 | AI7: 260.0 | AK7: 16 | AL7: 65.0 | AN7: 16 | AO7: 65.0 | AQ7: C0 | AR7: 64Ex2M | AS7: 4 | AT7: =8*$L7/($K7*AS7) -> 260.0 | AV7: 4 | AW7: 260.0 | AY7: 8 | AZ7: 130.0 | BB7: 8 | BC7: 130.0 | BE7: C0 | BF7: 64Ex2M | BG7: 4 | BH7: =8*$L7/($K7*BG7) -> 260.0 | BJ7: 4 | BK7: 260.0 | BM7: 4 | BN7: 260.0 | BP7: 4 | BQ7: 260.0 | BS7: C0 | BT7: 64Ex2M | BU7: 4 | BV7: 260.0 | BX7: 4 | BY7: 260.0 | CA7: 4 | CB7: 260.0 | CD7: 4 | CE7: 260.0 | CG7: C0 | CH7: 64Ex2M | CI7: 4 | CJ7: 260.0 | CL7: 4 | CM7: 260.0 | CO7: 4 | CP7: 260.0 | CR7: 4 | CS7: 260.0 | CU7: C0 | CV7: 64Ex2M | CW7: 4 | CX7: 260.0 | CZ7: 4 | DA7: 260.0 | DC7: 4 | DD7: 260.0 | DF7: 4 | DG7: 260.0
B8: C2 | C8: 32Ex32M | D8: P1B | E8: 32 | F8: 32 | G8: 1 | H8: 1 | I8: 1 | J8: 1 | K8: 1.00 | L8: 1040 | M8: 1.5 | O8: C2 | P8: 32Ex32M | Q8: 8 | R8: =8*$L8/($K8*Q8) -> 1040.0 | T8: 8 | U8: 1040.0 | W8: 128 | X8: 65.0 | Z8: 1.00E+10 | AA8: 0.0 | AC8: C2 | AD8: 32Ex32M | AE8: 1.00E+10 | AF8: =8*$L8/($K8*AE8) -> 0.0 | AH8: 1.00E+10 | AI8: 0.0 | AK8: 1.00E+10 | AL8: 0.0 | AN8: 1.00E+10 | AO8: 0.0 | AQ8: C2 | AR8: 32Ex32M | AS8: 1.00E+10 | AT8: =8*$L8/($K8*AS8) -> 0.0 | AV8: 1.00E+10 | AW8: 0.0 | AY8: 1.00E+10 | AZ8: 0.0 | BB8: 1.00E+10 | BC8: 0.0 | BE8: C2 | BF8: 32Ex32M | BG8: 1.00E+10 | BH8: =8*$L8/($K8*BG8) -> 0.0 | BJ8: 1.00E+10 | BK8: 0.0 | BM8: 1.00E+10 | BN8: 0.0 | BP8: 1.00E+10 | BQ8: 0.0 | BS8: C2 | BT8: 32Ex32M | BU8: 1.00E+10 | BV8: 0.0 | BX8: 1.00E+10 | BY8: 0.0 | CA8: 1.00E+10 | CB8: 0.0 | CD8: 1.00E+10 | CE8: 0.0 | CG8: C2 | CH8: 32Ex32M | CI8: 1.00E+10 | CJ8: 0.0 | CL8: 1.00E+10 | CM8: 0.0 | CO8: 1.00E+10 | CP8: 0.0 | CR8: 1.00E+10 | CS8: 0.0 | CU8: C2 | CV8: 32Ex32M | CW8: 1.00E+10 | CX8: 0.0 | CZ8: 1.00E+10 | DA8: 0.0 | DC8: 1.00E+10 | DD8: 0.0 | DF8: 1.00E+10 | DG8: 0.0
B9: C4 | C9: 4Ex64M | D9: P1C | E9: 4 | F9: 64 | G9: 1 | H9: 1 | I9: 1 | J9: 1 | K9: 4.00 | L9: 1040 | M9: 1.5 | O9: C4 | P9: 4Ex64M | Q9: 4 | R9: 520.0 | T9: 4 | U9: 520.0 | W9: 32 | X9: 65.0 | Z9: 1.00E+10 | AA9: 0.0 | AC9: C4 | AD9: 4Ex64M | AE9: 1.00E+10 | AF9: 0.0 | AH9: 1.00E+10 | AI9: 0.0 | AK9: 1.00E+10 | AL9: 0.0 | AN9: 1.00E+10 | AO9: 0.0 | AQ9: C4 | AR9: 4Ex64M | AS9: 1.00E+10 | AT9: 0.0 | AV9: 1.00E+10 | AW9: 0.0 | AY9: 1.00E+10 | AZ9: 0.0 | BB9: 1.00E+10 | BC9: 0.0 | BE9: C4 | BF9: 4Ex64M | BG9: 1.00E+10 | BH9: 0.0 | BJ9: 1.00E+10 | BK9: 0.0 | BM9: 4 | BN9: 520.0 | BP9: 4 | BQ9: 520.0 | BS9: C4 | BT9: 4Ex64M | BU9: 1.00E+10 | BV9: 0.0 | BX9: 1.00E+10 | BY9: 0.0 | CA9: 1.00E+10 | CB9: 0.0 | CD9: 1.00E+10 | CE9: 0.0 | CG9: C4 | CH9: 4Ex64M | CI9: 1.00E+10 | CJ9: 0.0 | CL9: 1.00E+10 | CM9: 0.0 | CO9: 1.00E+10 | CP9: 0.0 | CR9: 1.00E+10 | CS9: 0.0 | CU9: C4 | CV9: 4Ex64M | CW9: 1.00E+10 | CX9: 0.0 | CZ9: 1.00E+10 | DA9: 0.0 | DC9: 1.00E+10 | DD9: 0.0 | DF9: 1.00E+10 | DG9: 0.0
B10: C6 | C10: 32Ex64M | D10: P1D | E10: 32 | F10: 64 | G10: 1 | H10: 1 | I10: 1 | J10: 1 | K10: 0.50 | L10: 1040 | M10: 1.5 | O10: C6 | P10: 32Ex64M | Q10: 1.00E+10 | R10: 0.0 | T10: 1.00E+10 | U10: 0.0 | W10: 1.00E+10 | X10: 0.0 | Z10: 128 | AA10: 130.0 | AC10: C6 | AD10: 32Ex64M | AE10: 4 | AF10: 4160.0 | AH10: 4 | AI10: 4160.0 | AK10: 64 | AL10: 260.0 | AN10: 64 | AO10: 260.0 | AQ10: C6 | AR10: 32Ex64M | AS10: 4 | AT10: 4160.0 | AV10: 4 | AW10: 4160.0 | AY10: 16 | AZ10: 1040.0 | BB10: 16 | BC10: 1040.0 | BE10: C6 | BF10: 32Ex64M | BG10: 4 | BH10: 4160.0 | BJ10: 4 | BK10: 4160.0 | BM10: 16 | BN10: 1040.0 | BP10: 16 | BQ10: 1040.0 | BS10: C6 | BT10: 32Ex64M | BU10: 4 | BV10: 4160.0 | BX10: 4 | BY10: 4160.0 | CA10: 4 | CB10: 4160.0 | CD10: 4 | CE10: 4160.0 | CG10: C6 | CH10: 32Ex64M | CI10: 4 | CJ10: 4160.0 | CL10: 4 | CM10: 4160.0 | CO10: 4 | CP10: 4160.0 | CR10: 4 | CS10: 4160.0 | CU10: C6 | CV10: 32Ex64M | CW10: 4 | CX10: 4160.0 | CZ10: 4 | DA10: 4160.0 | DC10: 4 | DD10: 4160.0 | DF10: 4 | DG10: 4160.0
B11: C8 | C11: 32Ex16D | D11: P2 | E11: 32 | F11: 1 | G11: 16 | H11: 1 | I11: 1 | J11: 1 | K11: 2.00 | L11: 1040 | M11: 1.5 | O11: C8 | P11: 32Ex16D | Q11: 8 | R11: 520.0 | T11: 8 | U11: 520.0 | W11: 1.00E+10 | X11: 0.0 | Z11: 1.00E+10 | AA11: 0.0 | AC11: C8 | AD11: 32Ex16D | AE11: 4 | AF11: 1040.0 | AH11: 4 | AI11: 1040.0 | AK11: 64 | AL11: 65.0 | AN11: 1.00E+10 | AO11: 0.0 | AQ11: C8 | AR11: 32Ex16D | AS11: 4 | AT11: 1040.0 | AV11: 4 | AW11: 1040.0 | AY11: 16 | AZ11: 260.0 | BB11: 1.00E+10 | BC11: 0.0 | BE11: C8 | BF11: 32Ex16D | BG11: 4 | BH11: 1040.0 | BJ11: 4 | BK11: 1040.0 | BM11: 16 | BN11: 260.0 | BP11: 1.00E+10 | BQ11: 0.0 | BS11: C8 | BT11: 32Ex16D | BU11: 4 | BV11: 1040.0 | BX11: 4 | BY11: 1040.0 | CA11: 4 | CB11: 1040.0 | CD11: 4 | CE11: 1040.0 | CG11: C8 | CH11: 32Ex16D | CI11: 4 | CJ11: 1040.0 | CL11: 4 | CM11: 1040.0 | CO11: 4 | CP11: 1040.0 | CR11: 4 | CS11: 1040.0 | CU11: C8 | CV11: 32Ex16D | CW11: 4 | CX11: 1040.0 | CZ11: 4 | DA11: 1040.0 | DC11: 4 | DD11: 1040.0 | DF11: 4 | DG11: 1040.0
B12: CA | C12: 16Ex4Dx16A | D12: P3 | E12: 16 | F12: 1 | G12: 4 | H12: 16 | I12: 1 | J12: 1 | K12: 1.00 | L12: 1040 | M12: 1.5 | O12: CA | P12: 16Ex4Dx16A | Q12: 8 | R12: 1040.0 | T12: 8 | U12: 1040.0 | W12: 1.00E+10 | X12: 0.0 | Z12: 1.00E+10 | AA12: 0.0 | AC12: CA | AD12: 16Ex4Dx16A | AE12: 4 | AF12: 2080.0 | AH12: 4 | AI12: 2080.0 | AK12: 1.00E+10 | AL12: 0.0 | AN12: 1.00E+10 | AO12: 0.0 | AQ12: CA | AR12: 16Ex4Dx16A | AS12: 4 | AT12: 2080.0 | AV12: 4 | AW12: 2080.0 | AY12: 1.00E+10 | AZ12: 0.0 | BB12: 1.00E+10 | BC12: 0.0 | BE12: CA | BF12: 16Ex4Dx16A | BG12: 4 | BH12: 2080.0 | BJ12: 4 | BK12: 2080.0 | BM12: 1.00E+10 | BN12: 0.0 | BP12: 1.00E+10 | BQ12: 0.0 | BS12: CA | BT12: 16Ex4Dx16A | BU12: 4 | BV12: 2080.0 | BX12: 4 | BY12: 2080.0 | CA12: 1.00E+10 | CB12: 0.0 | CD12: 1.00E+10 | CE12: 0.0 | CG12: CA | CH12: 16Ex4Dx16A | CI12: 4 | CJ12: 2080.0 | CL12: 4 | CM12: 2080.0 | CO12: 4 | CP12: 2080.0 | CR12: 1.00E+10 | CS12: 0.0 | CU12: CA | CV12: 16Ex4Dx16A | CW12: 4 | CX12: 2080.0 | CZ12: 4 | DA12: 2080.0 | DC12: 4 | DD12: 2080.0 | DF12: 1.00E+10 | DG12: 0.0
B13: CC | C13: 32Ex32Mx8D | D13: P4A | E13: 32 | F13: 32 | G13: 8 | H13: 1 | I13: 1 | J13: 1 | K13: 0.13 | L13: 1040 | M13: 1.5 | O13: CC | P13: 32Ex32Mx8D | Q13: 64 | R13: 1040.0 | T13: 1.00E+10 | U13: 0.0 | W13: 1.00E+10 | X13: 0.0 | Z13: 1.00E+10 | AA13: 0.0 | AC13: CC | AD13: 32Ex32Mx8D | AE13: 64 | AF13: 1040.0 | AH13: 1.00E+10 | AI13: 0.0 | AK13: 1.00E+10 | AL13: 0.0 | AN13: 1.00E+10 | AO13: 0.0 | AQ13: CC | AR13: 32Ex32Mx8D | AS13: 32 | AT13: 2080.0 | AV13: 1.00E+10 | AW13: 0.0 | AY13: 1.00E+10 | AZ13: 0.0 | BB13: 1.00E+10 | BC13: 0.0 | BE13: CC | BF13: 32Ex32Mx8D | BG13: 32 | BH13: 2080.0 | BJ13: 1.00E+10 | BK13: 0.0 | BM13: 1.00E+10 | BN13: 0.0 | BP13: 1.00E+10 | BQ13: 0.0 | BS13: CC | BT13: 32Ex32Mx8D | BU13: 32 | BV13: 2080.0 | BX13: 1.00E+10 | BY13: 0.0 | CA13: 1.00E+10 | CB13: 0.0 | CD13: 1.00E+10 | CE13: 0.0 | CG13: CC | CH13: 32Ex32Mx8D | CI13: 16 | CJ13: 4160.0 | CL13: 1.00E+10 | CM13: 0.0 | CO13: 1.00E+10 | CP13: 0.0 | CR13: 1.00E+10 | CS13: 0.0 | CU13: CC | CV13: 32Ex32Mx8D | CW13: 16 | CX13: 4160.0 | CZ13: 1.00E+10 | DA13: 0.0 | DC13: 1.00E+10 | DD13: 0.0 | DF13: 1.00E+10 | DG13: 0.0
B14: CD | C14: 32Ex32Mx8D | D14: P4A-burst | E14: 32 | F14: 32 | G14: 8 | H14: 1 | I14: 1 | J14: 1 | K14: 0.13 | L14: 1040 | M14: 1.5 | O14: CD | P14: 32Ex32Mx8D | Q14: 4 | R14: 16640.0 | T14: 1.00E+10 | U14: 0.0 | W14: 1.00E+10 | X14: 0.0 | Z14: 1.00E+10 | AA14: 0.0 | AC14: CD | AD14: 32Ex32Mx8D | AE14: 4 | AF14: 16640.0 | AH14: 1.00E+10 | AI14: 0.0 | AK14: 1.00E+10 | AL14: 0.0 | AN14: 1.00E+10 | AO14: 0.0 | AQ14: CD | AR14: 32Ex32Mx8D | AS14: 4 | AT14: 16640.0 | AV14: 1.00E+10 | AW14: 0.0 | AY14: 1.00E+10 | AZ14: 0.0 | BB14: 1.00E+10 | BC14: 0.0 | BE14: CD | BF14: 32Ex32Mx8D | BG14: 4 | BH14: 16640.0 | BJ14: 1.00E+10 | BK14: 0.0 | BM14: 1.00E+10 | BN14: 0.0 | BP14: 1.00E+10 | BQ14: 0.0 | BS14: CD | BT14: 32Ex32Mx8D | BU14: 4 | BV14: 16640.0 | BX14: 1.00E+10 | BY14: 0.0 | CA14: 1.00E+10 | CB14: 0.0 | CD14: 1.00E+10 | CE14: 0.0 | CG14: CD | CH14: 32Ex32Mx8D | CI14: 4 | CJ14: 16640.0 | CL14: 1.00E+10 | CM14: 0.0 | CO14: 1.00E+10 | CP14: 0.0 | CR14: 1.00E+10 | CS14: 0.0 | CU14: CD | CV14: 32Ex32Mx8D | CW14: 4 | CX14: 16640.0 | CZ14: 1.00E+10 | DA14: 0.0 | DC14: 1.00E+10 | DD14: 0.0 | DF14: 1.00E+10 | DG14: 0.0
B15: CE | C15: 16Ex16Mx4Dx16A | D15: P4B | E15: 16 | F15: 16 | G15: 4 | H15: 16 | I15: 1 | J15: 1 | K15: 0.06 | L15: 1040 | M15: 1.5 | O15: CE | P15: 16Ex16Mx4Dx16A | Q15: 1.00E+10 | R15: 0.0 | T15: 128 | U15: 1040.0 | W15: 1.00E+10 | X15: 0.0 | Z15: 1.00E+10 | AA15: 0.0 | AC15: CE | AD15: 16Ex16Mx4Dx16A | AE15: 1.00E+10 | AF15: 0.0 | AH15: 64 | AI15: 2080.0 | AK15: 1.00E+10 | AL15: 0.0 | AN15: 1.00E+10 | AO15: 0.0 | AQ15: CE | AR15: 16Ex16Mx4Dx16A | AS15: 1.00E+10 | AT15: 0.0 | AV15: 32 | AW15: 4160.0 | AY15: 1.00E+10 | AZ15: 0.0 | BB15: 1.00E+10 | BC15: 0.0 | BE15: CE | BF15: 16Ex16Mx4Dx16A | BG15: 1.00E+10 | BH15: 0.0 | BJ15: 32 | BK15: 4160.0 | BM15: 1.00E+10 | BN15: 0.0 | BP15: 1.00E+10 | BQ15: 0.0 | BS15: CE | BT15: 16Ex16Mx4Dx16A | BU15: 1.00E+10 | BV15: 0.0 | BX15: 32 | BY15: 4160.0 | CA15: 1.00E+10 | CB15: 0.0 | CD15: 1.00E+10 | CE15: 0.0 | CG15: CE | CH15: 16Ex16Mx4Dx16A | CI15: 1.00E+10 | CJ15: 0.0 | CL15: 32 | CM15: 4160.0 | CO15: 1.00E+10 | CP15: 0.0 | CR15: 1.00E+10 | CS15: 0.0 | CU15: CE | CV15: 16Ex16Mx4Dx16A | CW15: 1.00E+10 | CX15: 0.0 | CZ15: 32 | DA15: 4160.0 | DC15: 1.00E+10 | DD15: 0.0 | DF15: 1.00E+10 | DG15: 0.0
B16: CF | C16: 16Ex16Mx4Dx16A | D16: P4B-burst | E16: 16 | F16: 16 | G16: 4 | H16: 16 | I16: 1 | J16: 1 | K16: 0.06 | L16: 1040 | M16: 1.5 | O16: CF | P16: 16Ex16Mx4Dx16A | Q16: 1.00E+10 | R16: 0.0 | T16: 4 | U16: 33280.0 | W16: 1.00E+10 | X16: 0.0 | Z16: 1.00E+10 | AA16: 0.0 | AC16: CF | AD16: 16Ex16Mx4Dx16A | AE16: 1.00E+10 | AF16: 0.0 | AH16: 4 | AI16: 33280.0 | AK16: 1.00E+10 | AL16: 0.0 | AN16: 1.00E+10 | AO16: 0.0 | AQ16: CF | AR16: 16Ex16Mx4Dx16A | AS16: 1.00E+10 | AT16: 0.0 | AV16: 4 | AW16: 33280.0 | AY16: 1.00E+10 | AZ16: 0.0 | BB16: 1.00E+10 | BC16: 0.0 | BE16: CF | BF16: 16Ex16Mx4Dx16A | BG16: 1.00E+10 | BH16: 0.0 | BJ16: 4 | BK16: 33280.0 | BM16: 1.00E+10 | BN16: 0.0 | BP16: 1.00E+10 | BQ16: 0.0 | BS16: CF | BT16: 16Ex16Mx4Dx16A | BU16: 1.00E+10 | BV16: 0.0 | BX16: 4 | BY16: 33280.0 | CA16: 1.00E+10 | CB16: 0.0 | CD16: 1.00E+10 | CE16: 0.0 | CG16: CF | CH16: 16Ex16Mx4Dx16A | CI16: 1.00E+10 | CJ16: 0.0 | CL16: 4 | CM16: 33280.0 | CO16: 1.00E+10 | CP16: 0.0 | CR16: 1.00E+10 | CS16: 0.0 | CU16: CF | CV16: 16Ex16Mx4Dx16A | CW16: 1.00E+10 | CX16: 0.0 | CZ16: 4 | DA16: 33280.0 | DC16: 1.00E+10 | DD16: 0.0 | DF16: 1.00E+10 | DG16: 0.0
B17: D0 | C17: 32Ex8Mx4Dx16A | D17: P4C | E17: 32 | F17: 8 | G17: 4 | H17: 16 | I17: 1 | J17: 1 | K17: 0.06 | L17: 1040 | M17: 1.5 | O17: D0 | P17: 32Ex8Mx4Dx16A | Q17: 1.00E+10 | R17: 0.0 | T17: 1.00E+10 | U17: 0.0 | W17: 256 | X17: 520.0 | Z17: 1.00E+10 | AA17: 0.0 | AC17: D0 | AD17: 32Ex8Mx4Dx16A | AE17: 1.00E+10 | AF17: 0.0 | AH17: 1.00E+10 | AI17: 0.0 | AK17: 512 | AL17: 260.0 | AN17: 1.00E+10 | AO17: 0.0 | AQ17: D0 | AR17: 32Ex8Mx4Dx16A | AS17: 1.00E+10 | AT17: 0.0 | AV17: 1.00E+10 | AW17: 0.0 | AY17: 512 | AZ17: 260.0 | BB17: 1.00E+10 | BC17: 0.0 | BE17: D0 | BF17: 32Ex8Mx4Dx16A | BG17: 1.00E+10 | BH17: 0.0 | BJ17: 1.00E+10 | BK17: 0.0 | BM17: 512 | BN17: 260.0 | BP17: 1.00E+10 | BQ17: 0.0 | BS17: D0 | BT17: 32Ex8Mx4Dx16A | BU17: 1.00E+10 | BV17: 0.0 | BX17: 1.00E+10 | BY17: 0.0 | CA17: 128 | CB17: 1040.0 | CD17: 1.00E+10 | CE17: 0.0 | CG17: D0 | CH17: 32Ex8Mx4Dx16A | CI17: 1.00E+10 | CJ17: 0.0 | CL17: 1.00E+10 | CM17: 0.0 | CO17: 64 | CP17: 2080.0 | CR17: 1.00E+10 | CS17: 0.0 | CU17: D0 | CV17: 32Ex8Mx4Dx16A | CW17: 1.00E+10 | CX17: 0.0 | CZ17: 1.00E+10 | DA17: 0.0 | DC17: 128 | DD17: 1040.0 | DF17: 1.00E+10 | DG17: 0.0
B18: D1 | C18: 32Ex8Mx4Dx16A | D18: P4C-burst | E18: 32 | F18: 8 | G18: 4 | H18: 16 | I18: 1 | J18: 1 | K18: 0.06 | L18: 1040 | M18: 1.5 | O18: D1 | P18: 32Ex8Mx4Dx16A | Q18: 1.00E+10 | R18: 0.0 | T18: 1.00E+10 | U18: 0.0 | W18: 4 | X18: 33280.0 | Z18: 1.00E+10 | AA18: 0.0 | AC18: D1 | AD18: 32Ex8Mx4Dx16A | AE18: 1.00E+10 | AF18: 0.0 | AH18: 1.00E+10 | AI18: 0.0 | AK18: 16 | AL18: 8320.0 | AN18: 1.00E+10 | AO18: 0.0 | AQ18: D1 | AR18: 32Ex8Mx4Dx16A | AS18: 1.00E+10 | AT18: 0.0 | AV18: 1.00E+10 | AW18: 0.0 | AY18: 16 | AZ18: 8320.0 | BB18: 1.00E+10 | BC18: 0.0 | BE18: D1 | BF18: 32Ex8Mx4Dx16A | BG18: 1.00E+10 | BH18: 0.0 | BJ18: 1.00E+10 | BK18: 0.0 | BM18: 16 | BN18: 8320.0 | BP18: 1.00E+10 | BQ18: 0.0 | BS18: D1 | BT18: 32Ex8Mx4Dx16A | BU18: 1.00E+10 | BV18: 0.0 | BX18: 1.00E+10 | BY18: 0.0 | CA18: 16 | CB18: 8320.0 | CD18: 1.00E+10 | CE18: 0.0 | CG18: D1 | CH18: 32Ex8Mx4Dx16A | CI18: 1.00E+10 | CJ18: 0.0 | CL18: 1.00E+10 | CM18: 0.0 | CO18: 16 | CP18: 8320.0 | CR18: 1.00E+10 | CS18: 0.0 | CU18: D1 | CV18: 32Ex8Mx4Dx16A | CW18: 1.00E+10 | CX18: 0.0 | CZ18: 1.00E+10 | DA18: 0.0 | DC18: 16 | DD18: 8320.0 | DF18: 1.00E+10 | DG18: 0.0
B19: D2 | C19: 32Ex8Mx16A | D19: P4D | E19: 32 | F19: 8 | G19: 1 | H19: 16 | I19: 1 | J19: 1 | K19: 0.25 | L19: 1040 | M19: 1.5 | O19: D2 | P19: 32Ex8Mx16A | Q19: 1.00E+10 | R19: 0.0 | T19: 1.00E+10 | U19: 0.0 | W19: 1.00E+10 | X19: 0.0 | Z19: 64 | AA19: 520.0 | AC19: D2 | AD19: 32Ex8Mx16A | AE19: 1.00E+10 | AF19: 0.0 | AH19: 1.00E+10 | AI19: 0.0 | AK19: 1.00E+10 | AL19: 0.0 | AN19: 16 | AO19: 2080.0 | AQ19: D2 | AR19: 32Ex8Mx16A | AS19: 1.00E+10 | AT19: 0.0 | AV19: 1.00E+10 | AW19: 0.0 | AY19: 1.00E+10 | AZ19: 0.0 | BB19: 16 | BC19: 2080.0 | BE19: D2 | BF19: 32Ex8Mx16A | BG19: 1.00E+10 | BH19: 0.0 | BJ19: 1.00E+10 | BK19: 0.0 | BM19: 1.00E+10 | BN19: 0.0 | BP19: 16 | BQ19: 2080.0 | BS19: D2 | BT19: 32Ex8Mx16A | BU19: 1.00E+10 | BV19: 0.0 | BX19: 1.00E+10 | BY19: 0.0 | CA19: 1.00E+10 | CB19: 0.0 | CD19: 16 | CE19: 2080.0 | CG19: D2 | CH19: 32Ex8Mx16A | CI19: 1.00E+10 | CJ19: 0.0 | CL19: 1.00E+10 | CM19: 0.0 | CO19: 1.00E+10 | CP19: 0.0 | CR19: 16 | CS19: 2080.0 | CU19: D2 | CV19: 32Ex8Mx16A | CW19: 1.00E+10 | CX19: 0.0 | CZ19: 1.00E+10 | DA19: 0.0 | DC19: 1.00E+10 | DD19: 0.0 | DF19: 16 | DG19: 2080.0
B20: D3 | C20: 32Ex8Mx16A | D20: P4D-burst | E20: 32 | F20: 8 | G20: 1 | H20: 16 | I20: 1 | J20: 1 | K20: 0.25 | L20: 1040 | M20: 1.5 | O20: D3 | P20: 32Ex8Mx16A | Q20: 1.00E+10 | R20: 0.0 | T20: 1.00E+10 | U20: 0.0 | W20: 1.00E+10 | X20: 0.0 | Z20: 4 | AA20: 8320.0 | AC20: D3 | AD20: 32Ex8Mx16A | AE20: 1.00E+10 | AF20: 0.0 | AH20: 1.00E+10 | AI20: 0.0 | AK20: 1.00E+10 | AL20: 0.0 | AN20: 4 | AO20: 8320.0 | AQ20: D3 | AR20: 32Ex8Mx16A | AS20: 1.00E+10 | AT20: 0.0 | AV20: 1.00E+10 | AW20: 0.0 | AY20: 1.00E+10 | AZ20: 0.0 | BB20: 4 | BC20: 8320.0 | BE20: D3 | BF20: 32Ex8Mx16A | BG20: 1.00E+10 | BH20: 0.0 | BJ20: 1.00E+10 | BK20: 0.0 | BM20: 1.00E+10 | BN20: 0.0 | BP20: 4 | BQ20: 8320.0 | BS20: D3 | BT20: 32Ex8Mx16A | BU20: 1.00E+10 | BV20: 0.0 | BX20: 1.00E+10 | BY20: 0.0 | CA20: 1.00E+10 | CB20: 0.0 | CD20: 4 | CE20: 8320.0 | CG20: D3 | CH20: 32Ex8Mx16A | CI20: 1.00E+10 | CJ20: 0.0 | CL20: 1.00E+10 | CM20: 0.0 | CO20: 1.00E+10 | CP20: 0.0 | CR20: 4 | CS20: 8320.0 | CU20: D3 | CV20: 32Ex8Mx16A | CW20: 1.00E+10 | CX20: 0.0 | CZ20: 1.00E+10 | DA20: 0.0 | DC20: 1.00E+10 | DD20: 0.0 | DF20: 4 | DG20: 8320.0
B21: D4 | C21: 2Mx4Dx16A | D21: P4E | E21: 1 | F21: 2 | G21: 4 | H21: 16 | I21: 1 | J21: 1 | K21: 8.00 | L21: 1040 | M21: 1.5 | O21: D4 | P21: 2Mx4Dx16A | Q21: 1.00E+10 | R21: 0.0 | T21: 1.00E+10 | U21: 0.0 | W21: 8 | X21: 130.0 | Z21: 1.00E+10 | AA21: 0.0 | AC21: D4 | AD21: 2Mx4Dx16A | AE21: 1.00E+10 | AF21: 0.0 | AH21: 1.00E+10 | AI21: 0.0 | AK21: 16 | AL21: 65.0 | AN21: 1.00E+10 | AO21: 0.0 | AQ21: D4 | AR21: 2Mx4Dx16A | AS21: 1.00E+10 | AT21: 0.0 | AV21: 1.00E+10 | AW21: 0.0 | AY21: 8 | AZ21: 130.0 | BB21: 1.00E+10 | BC21: 0.0 | BE21: D4 | BF21: 2Mx4Dx16A | BG21: 1.00E+10 | BH21: 0.0 | BJ21: 1.00E+10 | BK21: 0.0 | BM21: 4 | BN21: 260.0 | BP21: 1.00E+10 | BQ21: 0.0 | BS21: D4 | BT21: 2Mx4Dx16A | BU21: 1.00E+10 | BV21: 0.0 | BX21: 1.00E+10 | BY21: 0.0 | CA21: 4 | CB21: 260.0 | CD21: 1.00E+10 | CE21: 0.0 | CG21: D4 | CH21: 2Mx4Dx16A | CI21: 1.00E+10 | CJ21: 0.0 | CL21: 1.00E+10 | CM21: 0.0 | CO21: 4 | CP21: 260.0 | CR21: 1.00E+10 | CS21: 0.0 | CU21: D4 | CV21: 2Mx4Dx16A | CW21: 1.00E+10 | CX21: 0.0 | CZ21: 1.00E+10 | DA21: 0.0 | DC21: 4 | DD21: 260.0 | DF21: 1.00E+10 | DG21: 0.0
B22: D6 | C22: Events | D22: Events | E22: 1 | F22: 1 | G22: 1 | H22: 1 | I22: =48*1024 -> 49152 | J22: 1 | K22: 0.02 | L22: 1040 | M22: 1.5 | O22: D6 | P22: Events | Q22: =SUM($B37:$B40)*60/$B41 -> 2700 | R22: 147.9 | T22: =SUM($B37:$B40)*60/$B41 -> 2700 | U22: 147.9 | W22: =SUM($B37:$B40)*60/$B41 -> 2700 | X22: 147.9 | Z22: =SUM($B37:$B40)*60/$B41 -> 2700 | AA22: 147.9 | AC22: D6 | AD22: Events | AE22: =SUM($B37:$B40)*60/$B41 -> 2700 | AF22: 147.9 | AH22: =SUM($B37:$B40)*60/$B41 -> 2700 | AI22: 147.9 | AK22: =SUM($B37:$B40)*60/$B41 -> 2700 | AL22: 147.9 | AN22: =SUM($B37:$B40)*60/$B41 -> 2700 | AO22: 147.9 | AQ22: D6 | AR22: Events | AS22: =SUM($B37:$B40)*60/$B41 -> 2700 | AT22: 147.9 | AV22: =SUM($B37:$B40)*60/$B41 -> 2700 | AW22: 147.9 | AY22: =SUM($B37:$B40)*60/$B41 -> 2700 | AZ22: 147.9 | BB22: =SUM($B37:$B40)*60/$B41 -> 2700 | BC22: 147.9 | BE22: D6 | BF22: Events | BG22: =SUM($B37:$B40)*60/$B41 -> 2700 | BH22: 147.9 | BJ22: =SUM($B37:$B40)*60/$B41 -> 2700 | BK22: 147.9 | BM22: =SUM($B37:$B40)*60/$B41 -> 2700 | BN22: 147.9 | BP22: =SUM($B37:$B40)*60/$B41 -> 2700 | BQ22: 147.9 | BS22: D6 | BT22: Events | BU22: =SUM($B37:$B40)*60/$B41 -> 2700 | BV22: 147.9 | BX22: =SUM($B37:$B40)*60/$B41 -> 2700 | BY22: 147.9 | CA22: =SUM($B37:$B40)*60/$B41 -> 2700 | CB22: 147.9 | CD22: =SUM($B37:$B40)*60/$B41 -> 2700 | CE22: 147.9 | CG22: D6 | CH22: Events | CI22: =SUM($B37:$B40)*60/$B41 -> 2700 | CJ22: 147.9 | CL22: =SUM($B37:$B40)*60/$B41 -> 2700 | CM22: 147.9 | CO22: =SUM($B37:$B40)*60/$B41 -> 2700 | CP22: 147.9 | CR22: =SUM($B37:$B40)*60/$B41 -> 2700 | CS22: 147.9 | CU22: D6 | CV22: Events | CW22: =SUM($B37:$B40)*60/$B41 -> 2700 | CX22: 147.9 | CZ22: =SUM($B37:$B40)*60/$B41 -> 2700 | DA22: 147.9 | DC22: =SUM($B37:$B40)*60/$B41 -> 2700 | DD22: 147.9 | DF22: =SUM($B37:$B40)*60/$B41 -> 2700 | DG22: 147.9
B23: D7 | C23: Fst Hkp | D23: Fst Hkp | E23: 1 | F23: 1 | G23: 1 | H23: 1 | I23: 512 | J23: 2 | K23: 1.00 | L23: 1040 | M23: 1.5 | O23: D7 | P23: Fst Hkp | Q23: 1.00E+10 | R23: 0.0 | T23: 1.00E+10 | U23: 0.0 | W23: 1.00E+10 | X23: 0.0 | Z23: 1.00E+10 | AA23: 0.0 | AC23: D7 | AD23: Fst Hkp | AE23: 1.00E+10 | AF23: 0.0 | AH23: 1.00E+10 | AI23: 0.0 | AK23: 1.00E+10 | AL23: 0.0 | AN23: 1.00E+10 | AO23: 0.0 | AQ23: D7 | AR23: Fst Hkp | AS23: 1.00E+10 | AT23: 0.0 | AV23: 1.00E+10 | AW23: 0.0 | AY23: 1.00E+10 | AZ23: 0.0 | BB23: 1.00E+10 | BC23: 0.0 | BE23: D7 | BF23: Fst Hkp | BG23: 1.00E+10 | BH23: 0.0 | BJ23: 1.00E+10 | BK23: 0.0 | BM23: 1.00E+10 | BN23: 0.0 | BP23: 1.00E+10 | BQ23: 0.0 | BS23: D7 | BT23: Fst Hkp | BU23: 1.00E+10 | BV23: 0.0 | BX23: 1.00E+10 | BY23: 0.0 | CA23: 1.00E+10 | CB23: 0.0 | CD23: 1.00E+10 | CE23: 0.0 | CG23: D7 | CH23: Fst Hkp | CI23: 1.00E+10 | CJ23: 0.0 | CL23: 1.00E+10 | CM23: 0.0 | CO23: 1.00E+10 | CP23: 0.0 | CR23: 1.00E+10 | CS23: 0.0 | CU23: D7 | CV23: Fst Hkp | CW23: 1.00E+10 | CX23: 0.0 | CZ23: 1.00E+10 | DA23: 0.0 | DC23: 1.00E+10 | DD23: 0.0 | DF23: 1.00E+10 | DG23: 0.0
B24: D8 | C24: Rate1 | D24: Rate1 | E24: 1 | F24: 1 | G24: 1 | H24: 1 | I24: 12 | J24: 1 | K24: 16.00 | L24: 208 | M24: 7.7 | O24: D8 | P24: Rate1 | Q24: 4 | R24: 26.0 | T24: 4 | U24: 26.0 | W24: 8 | X24: 13.0 | Z24: 8 | AA24: 13.0 | AC24: D8 | AD24: Rate1 | AE24: 4 | AF24: 26.0 | AH24: 4 | AI24: 26.0 | AK24: 4 | AL24: 26.0 | AN24: 4 | AO24: 26.0 | AQ24: D8 | AR24: Rate1 | AS24: 4 | AT24: 26.0 | AV24: 4 | AW24: 26.0 | AY24: 4 | AZ24: 26.0 | BB24: 4 | BC24: 26.0 | BE24: D8 | BF24: Rate1 | BG24: 4 | BH24: 26.0 | BJ24: 4 | BK24: 26.0 | BM24: 4 | BN24: 26.0 | BP24: 4 | BQ24: 26.0 | BS24: D8 | BT24: Rate1 | BU24: 4 | BV24: 26.0 | BX24: 4 | BY24: 26.0 | CA24: 4 | CB24: 26.0 | CD24: 4 | CE24: 26.0 | CG24: D8 | CH24: Rate1 | CI24: 4 | CJ24: 26.0 | CL24: 4 | CM24: 26.0 | CO24: 4 | CP24: 26.0 | CR24: 4 | CS24: 26.0 | CU24: D8 | CV24: Rate1 | CW24: 4 | CX24: 26.0 | CZ24: 4 | DA24: 26.0 | DC24: 4 | DD24: 26.0 | DF24: 4 | DG24: 26.0
B25: D9 | C25: Rate2 | D25: Rate2 | E25: 64 | F25: 1 | G25: 1 | H25: 1 | I25: 12 | J25: 1 | K25: 1.00 | L25: 784 | M25: 2.0 | O25: D9 | P25: Rate2 | Q25: 128 | R25: 49.0 | T25: 128 | U25: 49.0 | W25: 256 | X25: 24.5 | Z25: 256 | AA25: 24.5 | AC25: D9 | AD25: Rate2 | AE25: 128 | AF25: 49.0 | AH25: 128 | AI25: 49.0 | AK25: 128 | AL25: 49.0 | AN25: 128 | AO25: 49.0 | AQ25: D9 | AR25: Rate2 | AS25: 128 | AT25: 49.0 | AV25: 128 | AW25: 49.0 | AY25: 128 | AZ25: 49.0 | BB25: 128 | BC25: 49.0 | BE25: D9 | BF25: Rate2 | BG25: 128 | BH25: 49.0 | BJ25: 128 | BK25: 49.0 | BM25: 128 | BN25: 49.0 | BP25: 128 | BQ25: 49.0 | BS25: D9 | BT25: Rate2 | BU25: 128 | BV25: 49.0 | BX25: 128 | BY25: 49.0 | CA25: 128 | CB25: 49.0 | CD25: 128 | CE25: 49.0 | CG25: D9 | CH25: Rate2 | CI25: 128 | CJ25: 49.0 | CL25: 128 | CM25: 49.0 | CO25: 128 | CP25: 49.0 | CR25: 128 | CS25: 49.0 | CU25: D9 | CV25: Rate2 | CW25: 128 | CX25: 49.0 | CZ25: 128 | DA25: 49.0 | DC25: 128 | DD25: 49.0 | DF25: 128 | DG25: 49.0
B26: DA | C26: Rate3 | D26: Rate3 | E26: 64 | F26: 1 | G26: 1 | H26: 1 | I26: 1 | J26: 1 | K26: 16.00 | L26: 1040 | M26: 1.5 | O26: DA | P26: Rate3 | Q26: 4 | R26: 130.0 | T26: 4 | U26: 130.0 | W26: 8 | X26: 65.0 | Z26: 4 | AA26: 130.0 | AC26: DA | AD26: Rate3 | AE26: 4 | AF26: 130.0 | AH26: 4 | AI26: 130.0 | AK26: 4 | AL26: 130.0 | AN26: 4 | AO26: 130.0 | AQ26: DA | AR26: Rate3 | AS26: 4 | AT26: 130.0 | AV26: 4 | AW26: 130.0 | AY26: 4 | AZ26: 130.0 | BB26: 4 | BC26: 130.0 | BE26: DA | BF26: Rate3 | BG26: 4 | BH26: 130.0 | BJ26: 4 | BK26: 130.0 | BM26: 4 | BN26: 130.0 | BP26: 4 | BQ26: 130.0 | BS26: DA | BT26: Rate3 | BU26: 4 | BV26: 130.0 | BX26: 4 | BY26: 130.0 | CA26: 4 | CB26: 130.0 | CD26: 4 | CE26: 130.0 | CG26: DA | CH26: Rate3 | CI26: 4 | CJ26: 130.0 | CL26: 4 | CM26: 130.0 | CO26: 4 | CP26: 130.0 | CR26: 4 | CS26: 130.0 | CU26: DA | CV26: Rate3 | CW26: 4 | CX26: 130.0 | CZ26: 4 | DA26: 130.0 | DC26: 4 | DD26: 130.0 | DF26: 4 | DG26: 130.0
B27: DB | C27: 1024M | D27: MassHist | E27: 1 | F27: 1024 | G27: 1 | H27: 1 | I27: 1 | J27: 1 | K27: 1.00 | L27: 1040 | M27: 1.5 | O27: DB | P27: 1024M | Q27: 64 | R27: 130.0 | T27: 64 | U27: 130.0 | W27: 256 | X27: 32.5 | Z27: 256 | AA27: 32.5 | AC27: DB | AD27: 1024M | AE27: 64 | AF27: 130.0 | AH27: 64 | AI27: 130.0 | AK27: 256 | AL27: 32.5 | AN27: 256 | AO27: 32.5 | AQ27: DB | AR27: 1024M | AS27: 16 | AT27: 520.0 | AV27: 16 | AW27: 520.0 | AY27: 128 | AZ27: 65.0 | BB27: 128 | BC27: 65.0 | BE27: DB | BF27: 1024M | BG27: 4 | BH27: 2080.0 | BJ27: 4 | BK27: 2080.0 | BM27: 64 | BN27: 130.0 | BP27: 64 | BQ27: 130.0 | BS27: DB | BT27: 1024M | BU27: 4 | BV27: 2080.0 | BX27: 4 | BY27: 2080.0 | CA27: 64 | CB27: 130.0 | CD27: 64 | CE27: 130.0 | CG27: DB | CH27: 1024M | CI27: 4 | CJ27: 2080.0 | CL27: 4 | CM27: 2080.0 | CO27: 64 | CP27: 130.0 | CR27: 64 | CS27: 130.0 | CU27: DB | CV27: 1024M | CW27: 4 | CX27: 2080.0 | CZ27: 4 | DA27: 2080.0 | DC27: 64 | DD27: 130.0 | DF27: 64 | DG27: 130.0
B29: % Orbit in mode | R29: =$B37/SUM($B37:$B40) -> 0.05185185185 | U29: =$B38/SUM($B37:$B40) -> 0.07777777778 | X29: =$B40/SUM($B37:$B40) -> 0.8592592593 | AA29: =$B39/SUM($B37:$B40) -> 0.01111111111 | AF29: =$B37/SUM($B37:$B40) -> 0.05185185185 | AI29: =$B38/SUM($B37:$B40) -> 0.07777777778 | AL29: =$B40/SUM($B37:$B40) -> 0.8592592593 | AO29: =$B39/SUM($B37:$B40) -> 0.01111111111 | AT29: =$B37/SUM($B37:$B40) -> 0.05185185185 | AW29: =$B38/SUM($B37:$B40) -> 0.07777777778 | AZ29: =$B40/SUM($B37:$B40) -> 0.8592592593 | BC29: =$B39/SUM($B37:$B40) -> 0.01111111111 | BH29: =$B37/SUM($B37:$B40) -> 0.05185185185 | BK29: =$B38/SUM($B37:$B40) -> 0.07777777778 | BN29: =$B40/SUM($B37:$B40) -> 0.8592592593 | BQ29: =$B39/SUM($B37:$B40) -> 0.01111111111 | BV29: =$B37/SUM($B37:$B40) -> 0.05185185185 | BY29: =$B38/SUM($B37:$B40) -> 0.07777777778 | CB29: =$B40/SUM($B37:$B40) -> 0.8592592593 | CE29: =$B39/SUM($B37:$B40) -> 0.01111111111 | CJ29: =$B37/SUM($B37:$B40) -> 0.05185185185 | CM29: =$B38/SUM($B37:$B40) -> 0.07777777778 | CP29: =$B40/SUM($B37:$B40) -> 0.8592592593 | CS29: =$B39/SUM($B37:$B40) -> 0.01111111111 | CX29: =$B37/SUM($B37:$B40) -> 0.05185185185 | DA29: =$B38/SUM($B37:$B40) -> 0.07777777778 | DD29: =$B40/SUM($B37:$B40) -> 0.8592592593 | DG29: =$B39/SUM($B37:$B40) -> 0.01111111111
B30: Survey Data Rate | Q30: peak | R30: =SUM(R6:R27)-R14-R16-R18-R20-R22 -> 4794.0 | U30: =SUM(U6:U27)-U14-U16-U18-U20-U22 -> 4794.0 | X30: =SUM(X6:X27)-X14-X16-X18-X20-X22 -> 1084.0 | AA30: =SUM(AA6:AA27)-AA14-AA16-AA18-AA20-AA22 -> 1149.0 | AB30: NTE | AE30: peak | AF30: =SUM(AF6:AF27)-AF14-AF16-AF18-AF20-AF22 -> 8954.0 | AI30: =SUM(AI6:AI27)-AI14-AI16-AI18-AI20-AI22 -> 9994.0 | AL30: =SUM(AL6:AL27)-AL14-AL16-AL18-AL20-AL22 -> 991.5 | AO30: =SUM(AO6:AO27)-AO14-AO16-AO18-AO20-AO22 -> 2681.5 | AP30: NTE | AS30: peak | AT30: =SUM(AT6:AT27)-AT14-AT16-AT18-AT20-AT22 -> 10384.0 | AW30: =SUM(AW6:AW27)-AW14-AW16-AW18-AW20-AW22 -> 12464.0 | AZ30: =SUM(AZ6:AZ27)-AZ14-AZ16-AZ18-AZ20-AZ22 -> 2129.0 | BC30: =SUM(BC6:BC27)-BC14-BC16-BC18-BC20-BC22 -> 3559.0 | BD30: NTE | BG30: peak | BH30: =SUM(BH6:BH27)-BH14-BH16-BH18-BH20-BH22 -> 11944.0 | BK30: =SUM(BK6:BK27)-BK14-BK16-BK18-BK20-BK22 -> 14024.0 | BN30: =SUM(BN6:BN27)-BN14-BN16-BN18-BN20-BN22 -> 2974.0 | BQ30: =SUM(BQ6:BQ27)-BQ14-BQ16-BQ18-BQ20-BQ22 -> 4274.0 | BR30: NTE | BU30: peak | BV30: =SUM(BV6:BV27)-BV14-BV16-BV18-BV20-BV22 -> 11944.0 | BY30: =SUM(BY6:BY27)-BY14-BY16-BY18-BY20-BY22 -> 14024.0 | CB30: =SUM(CB6:CB27)-CB14-CB16-CB18-CB20-CB22 -> 7134.0 | CE30: =SUM(CE6:CE27)-CE14-CE16-CE18-CE20-CE22 -> 7914.0 | CF30: NTE | CI30: peak | CJ30: =SUM(CJ6:CJ27)-CJ14-CJ16-CJ18-CJ20-CJ22 -> 14024.0 | CM30: =SUM(CM6:CM27)-CM14-CM16-CM18-CM20-CM22 -> 14024.0 | CP30: =SUM(CP6:CP27)-CP14-CP16-CP18-CP20-CP22 -> 10254.0 | CS30: =SUM(CS6:CS27)-CS14-CS16-CS18-CS20-CS22 -> 7914.0 | CT30: NTE | CW30: peak | CX30: =SUM(CX6:CX27)-CX14-CX16-CX18-CX20-CX22 -> 14024.0 | DA30: =SUM(DA6:DA27)-DA14-DA16-DA18-DA20-DA22 -> 14024.0 | DD30: =SUM(DD6:DD27)-DD14-DD16-DD18-DD20-DD22 -> 9214.0 | DG30: =SUM(DG6:DG27)-DG14-DG16-DG18-DG20-DG22 -> 7914.0 | DH30: NTE
B31: NTE survey rate to s/c | D31: 14500 | AB31: =$D$31-$D$33 -> 14500 | AP31: =$D$31-$D$33 -> 14500 | BD31: =$D$31-$D$33 -> 14500 | BR31: =$D$31-$D$33 -> 14500 | CF31: =$D$31-$D$33 -> 14500 | CT31: =$D$31-$D$33 -> 14500 | DH31: =$D$31-$D$33 -> 14500
B32: Burst Data Rate | R32: =R14+R16+R18+R20 -> 16640.0 | U32: =U14+U16+U18+U20 -> 33280.0 | X32: =X14+X16+X18+X20 -> 33280.0 | AA32: =AA14+AA16+AA18+AA20 -> 8320.0 | AF32: =AF14+AF16+AF18+AF20 -> 16640.0 | AI32: =AI14+AI16+AI18+AI20 -> 33280.0 | AL32: =AL14+AL16+AL18+AL20 -> 8320.0 | AO32: =AO14+AO16+AO18+AO20 -> 8320.0 | AT32: =AT14+AT16+AT18+AT20 -> 16640.0 | AW32: =AW14+AW16+AW18+AW20 -> 33280.0 | AZ32: =AZ14+AZ16+AZ18+AZ20 -> 8320.0 | BC32: =BC14+BC16+BC18+BC20 -> 8320.0 | BH32: =BH14+BH16+BH18+BH20 -> 16640.0 | BK32: =BK14+BK16+BK18+BK20 -> 33280.0 | BN32: =BN14+BN16+BN18+BN20 -> 8320.0 | BQ32: =BQ14+BQ16+BQ18+BQ20 -> 8320.0 | BV32: =BV14+BV16+BV18+BV20 -> 16640.0 | BY32: =BY14+BY16+BY18+BY20 -> 33280.0 | CB32: =CB14+CB16+CB18+CB20 -> 8320.0 | CE32: =CE14+CE16+CE18+CE20 -> 8320.0 | CJ32: =CJ14+CJ16+CJ18+CJ20 -> 16640.0 | CM32: =CM14+CM16+CM18+CM20 -> 33280.0 | CP32: =CP14+CP16+CP18+CP20 -> 8320.0 | CS32: =CS14+CS16+CS18+CS20 -> 8320.0 | CX32: =CX14+CX16+CX18+CX20 -> 16640.0 | DA32: =DA14+DA16+DA18+DA20 -> 33280.0 | DD32: =DD14+DD16+DD18+DD20 -> 8320.0 | DG32: =DG14+DG16+DG18+DG20 -> 8320.0
B33: Event rate | D33: 0
B34: Orbit Averaged Survey Data Rate | Z34: survey | AA34: =R30*R29+U30*U29+X30*X29+AA30*AA29+(8*$B41*$L22/$K22)/(60*SUM($B37:$B40)) -> 1713.6 | AB34: NTE | AN34: survey | AO34: =AF30*AF29+AI30*AI29+AL30*AL29+AO30*AO29+(8*$B41*$L22/$K22)/(60*SUM($B37:$B40)) -> 2271.3 | AP34: NTE | BB34: survey | BC34: =AT30*AT29+AW30*AW29+AZ30*AZ29+BC30*BC29+(8*$B41*$L22/$K22)/(60*SUM($B37:$B40)) -> 3524.7 | BD34: NTE | BP34: survey | BQ34: =BH30*BH29+BK30*BK29+BN30*BN29+BQ30*BQ29+(8*$B41*$L22/$K22)/(60*SUM($B37:$B40)) -> 4460.9 | BR34: NTE | CD34: survey | CE34: =BV30*BV29+BY30*BY29+CB30*CB29+CE30*CE29+(8*$B41*$L22/$K22)/(60*SUM($B37:$B40)) -> 8075.9 | CF34: NTE | CR34: survey | CS34: =CJ30*CJ29+CM30*CM29+CP30*CP29+CS30*CS29+(8*$B41*$L22/$K22)/(60*SUM($B37:$B40)) -> 10864.6 | CT34: NTE | DF34: survey | DG34: =CX30*CX29+DA30*DA29+DD30*DD29+DG30*DG29+(8*$B41*$L22/$K22)/(60*SUM($B37:$B40)) -> 9971.0 | DH34: NTE
B35: NTE | C35: 2200 | AB35: =$C35*R2 -> 2200 | AP35: =$C35*AF2 -> 2200 | BD35: =$C35*AT2 -> 3300 | BR35: =$C35*BH2 -> 4400 | CF35: =$C35*BV2 -> 7150 | CT35: =$C35*CJ2 -> 9900 | DH35: =$C35*CX2 -> 8800
Z36: burst | AA36: =R32*R29+U32*U29+X32*X29+AA32*AA29 -> 32139.9 | AB36: NTE | AN36: burst | AO36: =AF32*AF29+AI32*AI29+AL32*AL29+AO32*AO29 -> 10692.7 | AP36: NTE | BB36: burst | BC36: =AT32*AT29+AW32*AW29+AZ32*AZ29+BC32*BC29 -> 10692.7 | BD36: NTE | BP36: burst | BQ36: =BH32*BH29+BK32*BK29+BN32*BN29+BQ32*BQ29 -> 10692.7 | BR36: NTE | CD36: burst | CE36: =BV32*BV29+BY32*BY29+CB32*CB29+CE32*CE29 -> 10692.7 | CF36: NTE | CR36: burst | CS36: =CJ32*CJ29+CM32*CM29+CP32*CP29+CS32*CS29 -> 10692.7 | CT36: NTE | DF36: burst | DG36: =CX32*CX29+DA32*DA29+DD32*DD29+DG32*DG29 -> 10692.7 | DH36: NTE
B37: 14 | D37: minutes at RAM rate (per 4.5 hr orbit) | AB37: 11000 | AP37: 11000 | BD37: 11000 | BK37: 16 | BR37: 11000 | CF37: 11000 | CT37: 11000 | DH37: 11000
B38: 21 | D38: minutes at CONIC rate (per 4.5 hr orbit) | AK38: 64
B39: 3 | D39: minutes at SCAN rate (per 4.5 hr orbit)
B40: =4.5*60-B39-B38-B37 -> 232 | D40: minutes in PICKUP mode (per 4.5 hour orbit)
B41: 6 | D41: mode changes per orbit (generate events)
A45: Notes: change the RTS_STASTART.py and Mode commands to include cmd.PFP_LOADTABLE(21,12,0x01) so that event readout is at 1 kbit/s rather than 2 kbit/s

Sheet Sheet2

Sheet Sheet3
